[Event "Open Nuevo Centro. Jornada 1"]
[Site "Chess.com"]
[Date "2020.06.19"]
[Round "7"]
[White "Serradilla Revert, Rodrigo"]
[Black "Lupu, Alexandru Mihai"]
[Result "0-1"]
[WhiteElo "644"]
[BlackElo "999"]
[TimeControl "180+2"]
[EndTime "11:49:04 PDT"]
[Termination "Victoria de KeenYoyo por jaque mate"]

1. d4 {[%clk 0:03:01.9]} 1... d5 {[%clk 0:03:00.3]} 2. e3 {[%clk 0:03:01.2]}
2... Bf5 {[%clk 0:03:00]} 3. Nd2 {[%clk 0:02:58.7]} 3... c6 {[%clk 0:02:58]} 4.
Bd3 {[%clk 0:02:55.7]} 4... e6 {[%clk 0:02:56.9]} 5. e4 {[%clk 0:02:54.1]} 5...
Bg6 {[%clk 0:02:53.3]} 6. exd5 {[%clk 0:02:53.2]} 6... cxd5 {[%clk 0:02:49.4]}
7. g3 {[%clk 0:02:45.5]} 7... Nf6 {[%clk 0:02:49.3]} 8. f4 {[%clk 0:02:45.3]}
8... Bd6 {[%clk 0:02:39.1]} 9. Bb5+ {[%clk 0:02:37.2]} 9... Nbd7 {[%clk
0:02:34.7]} 10. Ne2 {[%clk 0:02:25.2]} 10... a6 {[%clk 0:02:15.1]} 11. Ba4
{[%clk 0:02:21]} 11... O-O {[%clk 0:02:06.8]} 12. Nb3 {[%clk 0:02:19.2]} 12...
b5 {[%clk 0:02:05.7]} 13. Qd3 {[%clk 0:02:14.6]} 13... Bxd3 {[%clk 0:02:04.1]}
14. cxd3 {[%clk 0:02:14.7]} 14... bxa4 {[%clk 0:02:04.4]} 15. Na5 {[%clk
0:02:12.9]} 15... Qxa5+ {[%clk 0:02:03]} 16. Bd2 {[%clk 0:02:11.6]} 16... Qd8
{[%clk 0:01:57.3]} 17. O-O-O {[%clk 0:02:11.4]} 17... Re8 {[%clk 0:01:56.9]} 18.
Nc3 {[%clk 0:02:01.1]} 18... Ng4 {[%clk 0:01:56.5]} 19. h3 {[%clk 0:01:59.8]}
19... Nf2 {[%clk 0:01:53.6]} 20. Rdf1 {[%clk 0:01:58.6]} 20... Nxh1 {[%clk
0:01:50.6]} 21. Rxh1 {[%clk 0:01:59.4]} 21... f6 {[%clk 0:01:48.1]} 22. b4
{[%clk 0:01:51.5]} 22... Bxb4 {[%clk 0:01:46]} 23. Nxa4 {[%clk 0:01:48.4]} 23...
Bd6 {[%clk 0:01:45.1]} 24. f5 {[%clk 0:01:37]} 24... exf5 {[%clk 0:01:42.1]} 25.
g4 {[%clk 0:01:35.4]} 25... f4 {[%clk 0:01:38.1]} 26. h4 {[%clk 0:01:34.2]}
26... g6 {[%clk 0:01:32.8]} 27. h5 {[%clk 0:01:27.8]} 27... Kg7 {[%clk
0:01:28.3]} 28. hxg6 {[%clk 0:01:26]} 28... hxg6 {[%clk 0:01:28]} 29. g5 {[%clk
0:01:23.1]} 29... f5 {[%clk 0:01:24.6]} 30. Bxf4 {[%clk 0:01:17]} 30... Bxf4+
{[%clk 0:01:24.4]} 31. Kc2 {[%clk 0:01:11.6]} 31... Qc8+ {[%clk 0:01:20.6]} 32.
Kd1 {[%clk 0:01:06.9]} 32... Bxg5 {[%clk 0:01:18.4]} 33. Rg1 {[%clk 0:01:03.6]}
33... Qc1# {[%clk 0:01:15.9]} 0

[Event "Open Nuevo Centro. Jornada 1"]
[Site "Chess.com"]
[Date "2020.06.19"]
[Round "7"]
[White "Kovacevic, Slobodan"]
[Black "Bosch Jord�, Ricard"]
[Result "1-0"]
[WhiteElo "2052"]
[BlackElo "1743"]
[TimeControl "180+2"]
[EndTime "11:49:13 PDT"]
[Termination "Victoria de nikko110 por tiempo"]

1. d4 {[%clk 0:03:01.9]} 1... Nf6 {[%clk 0:03:00.2]} 2. Nf3 {[%clk 0:03:00.7]}
2... e6 {[%clk 0:02:59.7]} 3. Bf4 {[%clk 0:02:59.4]} 3... b6 {[%clk 0:02:59.1]}
4. Nbd2 {[%clk 0:02:58]} 4... Bb7 {[%clk 0:02:59.3]} 5. e3 {[%clk 0:02:57.4]}
5... Be7 {[%clk 0:02:57.3]} 6. h3 {[%clk 0:02:56.3]} 6... O-O {[%clk 0:02:50.7]}
7. Bd3 {[%clk 0:02:54.3]} 7... d5 {[%clk 0:02:45.5]} 8. c3 {[%clk 0:02:53.2]}
8... Nbd7 {[%clk 0:02:44.1]} 9. h4 {[%clk 0:02:51.4]} 9... c5 {[%clk 0:02:38.6]}
10. a4 {[%clk 0:02:48.8]} 10... cxd4 {[%clk 0:02:18.7]} 11. exd4 {[%clk
0:02:46.6]} 11... Ng4 {[%clk 0:01:49.1]} 12. Bxh7+ {[%clk 0:02:36.9]} 12... Kxh7
{[%clk 0:01:36]} 13. Ng5+ {[%clk 0:02:34.7]} 13... Kg8 {[%clk 0:01:36.4]} 14.
Qxg4 {[%clk 0:02:32.4]} 14... Nf6 {[%clk 0:01:28.3]} 15. Qe2 {[%clk 0:02:28.9]}
15... Bd6 {[%clk 0:01:27.6]} 16. Be5 {[%clk 0:02:26.9]} 16... Qe7 {[%clk
0:01:03.3]} 17. Qd3 {[%clk 0:02:14.6]} 17... Rfe8 {[%clk 0:00:51.4]} 18. O-O-O
{[%clk 0:02:07.2]} 18... a5 {[%clk 0:00:40.2]} 19. Rh3 {[%clk 0:02:04.8]} 19...
Ba6 {[%clk 0:00:40.1]} 20. Qc2 {[%clk 0:02:02.2]} 20... b5 {[%clk 0:00:38.7]}
21. axb5 {[%clk 0:01:59.9]} 21... Bxb5 {[%clk 0:00:39]} 22. Rf3 {[%clk
0:01:51.8]} 22... Bxe5 {[%clk 0:00:12.6]} 23. dxe5 {[%clk 0:01:45.9]} 23... Ne4
{[%clk 0:00:10.1]} 24. Rxf7 {[%clk 0:01:38.1]} 24... Qc5 {[%clk 0:00:04.4]} 25.
Ndxe4 {[%clk 0:01:32.4]} 25... dxe4 {[%clk 0:00:04.4]} 26. Qxe4 {[%clk
0:01:31.3]} 1

[Event "Open Nuevo Centro. Jornada 1"]
[Site "Chess.com"]
[Date "2020.06.19"]
[Round "7"]
[White "Amor�s P�rez, Manuel David"]
[Black "Crevillen Abad, Clemente"]
[Result "1/2-1/2"]
[WhiteElo "1656"]
[BlackElo "1767"]
[TimeControl "180+2"]
[EndTime "11:49:18 PDT"]
[Termination "Partida en tablas por mutuo acuerdo"]

1. e4 {[%clk 0:03:01.9]} 1... c5 {[%clk 0:02:59.9]} 2. Nf3 {[%clk 0:03:02.3]}
2... Nc6 {[%clk 0:03:00.9]} 3. d4 {[%clk 0:03:02.8]} 3... cxd4 {[%clk
0:03:01.9]} 4. Nxd4 {[%clk 0:03:03.1]} 4... Nf6 {[%clk 0:03:03.5]} 5. Nxc6
{[%clk 0:03:02.4]} 5... bxc6 {[%clk 0:03:03.1]} 6. Bd3 {[%clk 0:03:02.1]} 6...
e5 {[%clk 0:03:01.9]} 7. O-O {[%clk 0:03:02.6]} 7... Be7 {[%clk 0:02:58.7]} 8.
Nc3 {[%clk 0:03:03.3]} 8... d5 {[%clk 0:02:57]} 9. exd5 {[%clk 0:03:03.9]} 9...
cxd5 {[%clk 0:02:57.9]} 10. Bb5+ {[%clk 0:03:05]} 10... Bd7 {[%clk 0:02:58.2]}
11. Bxd7+ {[%clk 0:02:59]} 11... Qxd7 {[%clk 0:02:58.5]} 12. Bg5 {[%clk
0:03:00.2]} 12... d4 {[%clk 0:02:50.7]} 13. Bxf6 {[%clk 0:03:00.2]} 13... gxf6
{[%clk 0:02:46.1]} 14. Ne4 {[%clk 0:03:00.9]} 14... f5 {[%clk 0:02:45.9]} 15.
Nd2 {[%clk 0:02:53.7]} 15... O-O {[%clk 0:02:42.3]} 16. Re1 {[%clk 0:02:51.4]}
16... Bf6 {[%clk 0:02:33.8]} 17. Nc4 {[%clk 0:02:46.2]} 17... Qd5 {[%clk
0:02:20.4]} 18. b3 {[%clk 0:02:41]} 18... Rfe8 {[%clk 0:02:15.9]} 19. Qh5 {[%clk
0:01:54.3]} 19... e4 {[%clk 0:02:14.9]} 20. Rad1 {[%clk 0:01:54.8]} 20... Rad8
{[%clk 0:02:07.6]} 21. Ne3 {[%clk 0:01:54.3]} 21... dxe3 {[%clk 0:02:03.2]} 22.
Rxd5 {[%clk 0:01:54.7]} 22... exf2+ {[%clk 0:02:04]} 23. Kxf2 {[%clk 0:01:52.9]}
23... Rxd5 {[%clk 0:02:04.8]} 24. Re2 {[%clk 0:01:47.7]} 24... Bd4+ {[%clk
0:01:48.5]} 25. Kf1 {[%clk 0:01:45.2]} 25... Bb6 {[%clk 0:01:37.9]} 26. g3
{[%clk 0:01:34.7]} 26... Re6 {[%clk 0:01:35]} 27. Qg5+ {[%clk 0:01:26.3]} 27...
Rg6 {[%clk 0:01:33.6]} 28. Qf4 {[%clk 0:01:26.1]} 28... Rd1+ {[%clk 0:01:30.2]}
29. Re1 {[%clk 0:01:18.1]} 29... Rd5 {[%clk 0:01:21.2]} 30. Qb8+ {[%clk
0:01:11.8]} 30... Kg7 {[%clk 0:01:20.8]} 31. Qa8 {[%clk 0:01:11.8]} 31... Rd2
{[%clk 0:01:16.9]} 1/2-1

[Event "Open Nuevo Centro. Jornada 1"]
[Site "Chess.com"]
[Date "2020.06.19"]
[Round "7"]
[White "Deusa Ballesteros, Lucas "]
[Black "Zakharash, Georgii"]
[Result "1-0"]
[WhiteElo "1452"]
[BlackElo "997"]
[TimeControl "180+2"]
[EndTime "11:49:24 PDT"]
[Termination "Victoria de facundillo2009 por jaque mate"]

1. e4 {[%clk 0:03:01.9]} 1... c5 {[%clk 0:02:57.5]} 2. Nf3 {[%clk 0:03:02.3]}
2... d6 {[%clk 0:02:58]} 3. d4 {[%clk 0:03:03.2]} 3... cxd4 {[%clk 0:02:58.6]}
4. Nxd4 {[%clk 0:03:05.1]} 4... Nf6 {[%clk 0:02:59]} 5. Nc3 {[%clk 0:03:06.2]}
5... a6 {[%clk 0:03:00.2]} 6. Be2 {[%clk 0:03:06.4]} 6... e5 {[%clk 0:02:57.7]}
7. Nb3 {[%clk 0:03:05.8]} 7... Be6 {[%clk 0:02:56.6]} 8. Be3 {[%clk 0:02:54.5]}
8... Be7 {[%clk 0:02:55.1]} 9. f3 {[%clk 0:02:51.8]} 9... O-O {[%clk 0:02:53]}
10. O-O {[%clk 0:02:51.7]} 10... Nbd7 {[%clk 0:02:51.7]} 11. Nd5 {[%clk
0:02:48.9]} 11... Bxd5 {[%clk 0:02:39.1]} 12. exd5 {[%clk 0:02:50.8]} 12... Re8
{[%clk 0:02:37.6]} 13. c4 {[%clk 0:02:50.8]} 13... Bf8 {[%clk 0:02:37]} 14. Nd2
{[%clk 0:02:50.6]} 14... g6 {[%clk 0:02:35.2]} 15. Ne4 {[%clk 0:02:51.2]} 15...
Nxe4 {[%clk 0:02:31.7]} 16. fxe4 {[%clk 0:02:53.1]} 16... Bg7 {[%clk 0:02:31.1]}
17. Qd2 {[%clk 0:02:48.2]} 17... Rf8 {[%clk 0:02:29.9]} 18. Bh6 {[%clk
0:02:46.8]} 18... Nc5 {[%clk 0:02:22.7]} 19. Bxg7 {[%clk 0:02:42.3]} 19... Kxg7
{[%clk 0:02:19.8]} 20. Qe3 {[%clk 0:02:38.9]} 20... Qd7 {[%clk 0:02:16]} 21. Rf3
{[%clk 0:02:38.5]} 21... f5 {[%clk 0:02:13.4]} 22. Rh3 {[%clk 0:02:35.6]} 22...
f4 {[%clk 0:02:09.1]} 23. Qf3 {[%clk 0:02:25.8]} 23... g5 {[%clk 0:01:55.9]} 24.
Qh5 {[%clk 0:02:25.4]} 24... h6 {[%clk 0:01:52.8]} 25. Qxh6+ {[%clk 0:02:24.8]}
25... Kf7 {[%clk 0:01:51.8]} 26. Qxg5 {[%clk 0:02:16.5]} 26... Ke8 {[%clk
0:01:51.2]} 27. Qg6+ {[%clk 0:02:11.3]} 27... Kd8 {[%clk 0:01:49.7]} 28. Rh7
{[%clk 0:02:11]} 28... Qe8 {[%clk 0:01:31.6]} 29. Qg5+ {[%clk 0:02:05]} 29...
Kc8 {[%clk 0:01:30.6]} 30. Bg4+ {[%clk 0:02:05.5]} 30... Kb8 {[%clk 0:01:30.8]}
31. Re7 {[%clk 0:02:03.7]} 31... Qd8 {[%clk 0:01:29.1]} 32. Bf3 {[%clk
0:01:48.5]} 32... Rf7 {[%clk 0:01:24.8]} 33. b4 {[%clk 0:01:37.2]} 33... Nd3
{[%clk 0:01:07.7]} 34. Rxb7+ {[%clk 0:01:33.3]} 34... Kc8 {[%clk 0:00:58.9]} 35.
Qxd8+ {[%clk 0:01:31.6]} 35... Kxd8 {[%clk 0:00:56.5]} 36. Rxf7 {[%clk
0:01:31.7]} 36... Nxb4 {[%clk 0:00:54.7]} 37. Rb1 {[%clk 0:01:30]} 37... Nd3
{[%clk 0:00:54]} 38. Rbb7 {[%clk 0:01:29.7]} 38... Nc5 {[%clk 0:00:48.6]} 39.
Rf8# {[%clk 0:01:30.3]} 1

[Event "Open Nuevo Centro. Jornada 1"]
[Site "Chess.com"]
[Date "2020.06.19"]
[Round "7"]
[White "Borissov, Juli�n"]
[Black "Teply Koutsky, David"]
[Result "1-0"]
[WhiteElo "1850"]
[BlackElo "1643"]
[TimeControl "180+2"]
[EndTime "11:49:34 PDT"]
[Termination "Victoria de julianborisov por jaque mate"]

1. e4 {[%clk 0:03:01.9]} 1... e6 {[%clk 0:02:59.3]} 2. d4 {[%clk 0:03:01.9]}
2... d5 {[%clk 0:03:00]} 3. Nc3 {[%clk 0:03:02.9]} 3... Bb4 {[%clk 0:02:59.3]}
4. e5 {[%clk 0:03:00.1]} 4... b6 {[%clk 0:02:58]} 5. f4 {[%clk 0:02:52.2]} 5...
Ne7 {[%clk 0:02:50.3]} 6. Nf3 {[%clk 0:02:52.1]} 6... Nf5 {[%clk 0:02:40.2]} 7.
Bd3 {[%clk 0:02:50.5]} 7... Ba6 {[%clk 0:02:40]} 8. Bxf5 {[%clk 0:02:40.3]} 8...
exf5 {[%clk 0:02:39.5]} 9. Bd2 {[%clk 0:02:37.1]} 9... O-O {[%clk 0:02:36.2]}
10. Ne2 {[%clk 0:02:31.8]} 10... Bxd2+ {[%clk 0:02:35.1]} 11. Qxd2 {[%clk
0:02:31.2]} 11... c5 {[%clk 0:02:27.5]} 12. O-O {[%clk 0:02:30.7]} 12... Nc6
{[%clk 0:02:21.1]} 13. Rfe1 {[%clk 0:02:29.5]} 13... Bxe2 {[%clk 0:02:13.3]} 14.
Rxe2 {[%clk 0:02:28.3]} 14... c4 {[%clk 0:02:07.7]} 15. c3 {[%clk 0:02:21.2]}
15... Re8 {[%clk 0:02:04.1]} 16. h3 {[%clk 0:02:11]} 16... Qd7 {[%clk
0:02:01.5]} 17. Rae1 {[%clk 0:02:03.7]} 17... h6 {[%clk 0:02:00.1]} 18. Kh2
{[%clk 0:01:59.4]} 18... b5 {[%clk 0:01:50.4]} 19. Rg1 {[%clk 0:01:54]} 19... a5
{[%clk 0:01:48]} 20. g4 {[%clk 0:01:53.8]} 20... fxg4 {[%clk 0:01:47.7]} 21.
Rxg4 {[%clk 0:01:50.5]} 21... Ne7 {[%clk 0:01:20.2]} 22. Nh4 {[%clk 0:01:40.9]}
22... Nf5 {[%clk 0:01:09.1]} 23. Reg2 {[%clk 0:01:31.9]} 23... Nxh4 {[%clk
0:00:41.7]} 24. Rxh4 {[%clk 0:01:29.8]} 24... Kh8 {[%clk 0:00:41.4]} 25. Rh5
{[%clk 0:01:23.6]} 25... Kh7 {[%clk 0:00:32.5]} 26. f5 {[%clk 0:01:19.6]} 26...
Rg8 {[%clk 0:00:29.8]} 27. Rxg7+ {[%clk 0:01:13]} 27... Rxg7 {[%clk 0:00:17.3]}
28. Qxh6+ {[%clk 0:01:13.3]} 28... Kg8 {[%clk 0:00:17.9]} 29. Qh8# {[%clk
0:01:14.1]} 1

[Event "Open Nuevo Centro. Jornada 1"]
[Site "Chess.com"]
[Date "2020.06.19"]
[Round "7"]
[White "Cebolla Ruiz, David"]
[Black "Yatseta Fernandez, Marc Kazymyr"]
[Result "1-0"]
[WhiteElo "1654"]
[BlackElo "1395"]
[TimeControl "180+2"]
[EndTime "11:50:29 PDT"]
[Termination "Victoria de Dabelcebolla por abandono"]

1. e4 {[%clk 0:03:01.8]} 1... e5 {[%clk 0:02:59.7]} 2. Nf3 {[%clk 0:03:02.4]}
2... Nc6 {[%clk 0:03:00.4]} 3. Bb5 {[%clk 0:03:02.7]} 3... a6 {[%clk 0:03:00.8]}
4. Bxc6 {[%clk 0:03:03.8]} 4... dxc6 {[%clk 0:03:02]} 5. d4 {[%clk 0:03:05.1]}
5... exd4 {[%clk 0:03:01.7]} 6. Qxd4 {[%clk 0:03:06.1]} 6... Bg4 {[%clk
0:02:53.7]} 7. Nbd2 {[%clk 0:02:46.7]} 7... Nf6 {[%clk 0:02:45.3]} 8. h3 {[%clk
0:02:43.4]} 8... Bh5 {[%clk 0:02:24.8]} 9. O-O {[%clk 0:02:02]} 9... Qxd4 {[%clk
0:02:04.9]} 10. Nxd4 {[%clk 0:01:59.9]} 10... O-O-O {[%clk 0:01:59.7]} 11. c3
{[%clk 0:01:49.3]} 11... c5 {[%clk 0:01:53.4]} 12. Nf5 {[%clk 0:01:37]} 12...
Bg6 {[%clk 0:01:19.6]} 13. Ng3 {[%clk 0:01:13.9]} 13... Bd6 {[%clk 0:01:14.6]}
14. Re1 {[%clk 0:01:06.8]} 14... Rhe8 {[%clk 0:01:09.7]} 15. Ndf1 {[%clk
0:00:40.5]} 15... Nxe4 {[%clk 0:00:59.7]} 16. Nxe4 {[%clk 0:00:38.1]} 16... Bxe4
{[%clk 0:00:55]} 17. f3 {[%clk 0:00:32.4]} 17... Bc2 {[%clk 0:00:37.4]} 18. Bg5
{[%clk 0:00:20.2]} 18... f6 {[%clk 0:00:29.3]} 19. Bh4 {[%clk 0:00:20.2]} 19...
g5 {[%clk 0:00:22.6]} 20. Bg3 {[%clk 0:00:20.7]} 20... Bxg3 {[%clk 0:00:20.8]}
21. Nxg3 {[%clk 0:00:21.2]} 21... Bg6 {[%clk 0:00:17.8]} 22. Rad1 {[%clk
0:00:16.1]} 22... Rxe1+ {[%clk 0:00:17.9]} 23. Rxe1 {[%clk 0:00:17.1]} 23... Rd2
{[%clk 0:00:19.2]} 24. Re2 {[%clk 0:00:18.4]} 24... Rxe2 {[%clk 0:00:18.5]} 25.
Nxe2 {[%clk 0:00:19.2]} 25... h5 {[%clk 0:00:19.3]} 26. Kf2 {[%clk 0:00:18.9]}
26... Kd7 {[%clk 0:00:19.8]} 27. g3 {[%clk 0:00:18.2]} 27... b5 {[%clk
0:00:21.1]} 28. h4 {[%clk 0:00:18.6]} 28... gxh4 {[%clk 0:00:21.2]} 29. gxh4
{[%clk 0:00:19.3]} 29... Kd6 {[%clk 0:00:22.1]} 30. Nf4 {[%clk 0:00:20]} 30...
Ke5 {[%clk 0:00:19.9]} 31. Nxg6+ {[%clk 0:00:20.8]} 1

[Event "Open Nuevo Centro. Jornada 1"]
[Site "Chess.com"]
[Date "2020.06.19"]
[Round "7"]
[White "M�ndez Gim�nez , N�stor Emmanuel"]
[Black "Valverde Alcaide, Miguel Alejandro"]
[Result "1-0"]
[WhiteElo "1141"]
[BlackElo "910"]
[TimeControl "180+2"]
[EndTime "11:50:36 PDT"]
[Termination "Victoria de NestorMendez8 por tiempo"]

1. e4 {[%clk 0:03:01.9]} 1... e5 {[%clk 0:03:00.1]} 2. Nf3 {[%clk 0:03:02.2]}
2... Nc6 {[%clk 0:02:49.7]} 3. Bc4 {[%clk 0:03:02]} 3... Nh6 {[%clk 0:02:37.3]}
4. d4 {[%clk 0:02:56.7]} 4... exd4 {[%clk 0:02:33]} 5. Nxd4 {[%clk 0:02:56.7]}
5... Be7 {[%clk 0:02:28.7]} 6. Nxc6 {[%clk 0:02:55.8]} 6... dxc6 {[%clk
0:02:27.4]} 7. Qxd8+ {[%clk 0:02:51.5]} 7... Bxd8 {[%clk 0:02:28.2]} 8. Bxh6
{[%clk 0:02:51.9]} 8... gxh6 {[%clk 0:02:27.8]} 9. Nc3 {[%clk 0:02:49.8]} 9...
Bg4 {[%clk 0:02:13.2]} 10. f3 {[%clk 0:02:48]} 10... Bh5 {[%clk 0:02:13.5]} 11.
O-O-O {[%clk 0:02:47.3]} 11... Bg5+ {[%clk 0:02:09.7]} 12. Kb1 {[%clk
0:02:47.6]} 12... O-O {[%clk 0:02:09.5]} 13. g4 {[%clk 0:02:42.2]} 13... Bg6
{[%clk 0:02:05.5]} 14. h4 {[%clk 0:02:42.9]} 14... Bf6 {[%clk 0:02:02.4]} 15. h5
{[%clk 0:02:43.7]} 15... Rad8 {[%clk 0:01:46.4]} 16. Rxd8 {[%clk 0:02:42.5]}
16... Rxd8 {[%clk 0:01:42.8]} 17. hxg6 {[%clk 0:02:43.2]} 17... hxg6 {[%clk
0:01:35.9]} 18. a3 {[%clk 0:02:40.4]} 18... Rd4 {[%clk 0:01:18.4]} 19. Bb3
{[%clk 0:02:38.2]} 19... a6 {[%clk 0:01:10]} 20. Rxh6 {[%clk 0:02:38.5]} 20...
Kg7 {[%clk 0:01:06.9]} 21. Rh1 {[%clk 0:02:32.9]} 21... Bg5 {[%clk 0:01:03.7]}
22. Ne2 {[%clk 0:02:26]} 22... Rd2 {[%clk 0:00:59.2]} 23. f4 {[%clk 0:02:25.1]}
23... Be7 {[%clk 0:00:46.8]} 24. Nc3 {[%clk 0:02:21.4]} 24... Bd6 {[%clk
0:00:43.2]} 25. f5 {[%clk 0:02:21.3]} 25... gxf5 {[%clk 0:00:37.3]} 26. gxf5
{[%clk 0:02:21.1]} 26... Bc5 {[%clk 0:00:33.2]} 27. Rh2 {[%clk 0:02:18.3]} 27...
Bd6 {[%clk 0:00:29.8]} 28. Rxd2 {[%clk 0:02:16]} 28... Bf4 {[%clk 0:00:27.9]}
29. Rg2+ {[%clk 0:02:15.3]} 29... Kf6 {[%clk 0:00:27.4]} 30. Ne2 {[%clk
0:02:07.4]} 30... Bd2 {[%clk 0:00:24.9]} 31. e5+ {[%clk 0:02:00.8]} 31... Kxe5
{[%clk 0:00:24.9]} 32. f6 {[%clk 0:01:52.5]} 32... Kxf6 {[%clk 0:00:23.3]} 33.
Nd4 {[%clk 0:01:51.9]} 33... Be3 {[%clk 0:00:16.7]} 34. Ne2 {[%clk 0:01:50.7]}
34... b5 {[%clk 0:00:14.6]} 35. Rg3 {[%clk 0:01:50.5]} 35... Bh6 {[%clk
0:00:12.2]} 36. Rf3+ {[%clk 0:01:49.4]} 36... Ke7 {[%clk 0:00:11.5]} 37. Nf4
{[%clk 0:01:49.3]} 37... c5 {[%clk 0:00:06.8]} 38. Nd5+ {[%clk 0:01:48.2]} 38...
Kd6 {[%clk 0:00:05.3]} 39. Ba2 {[%clk 0:01:46.1]} 39... b4 {[%clk 0:00:06.1]}
40. axb4 {[%clk 0:01:40.4]} 40... c6 {[%clk 0:00:06.8]} 41. bxc5+ {[%clk
0:01:40.4]} 41... Kxc5 {[%clk 0:00:07.5]} 42. Nf6 {[%clk 0:01:38]} 42... Bd2
{[%clk 0:00:06.7]} 43. c3 {[%clk 0:01:35.3]} 1

[Event "Open Nuevo Centro. Jornada 1"]
[Site "Chess.com"]
[Date "2020.06.19"]
[Round "7"]
[White "Juan Alos, Sergio"]
[Black "Grigorev, Artur "]
[Result "1-0"]
[WhiteElo "1091"]
[BlackElo "875"]
[TimeControl "180+2"]
[EndTime "11:50:48 PDT"]
[Termination "Victoria de SergioJuanAlos por tiempo"]

1. d4 {[%clk 0:00:35]} 1... d5 {[%clk 0:02:57.9]} 2. Nf3 {[%clk 0:00:36.9]} 2...
Nc6 {[%clk 0:02:56.3]} 3. e3 {[%clk 0:00:38.8]} 3... Bf5 {[%clk 0:02:48.1]} 4.
c3 {[%clk 0:00:40.7]} 4... e6 {[%clk 0:02:45]} 5. Bd3 {[%clk 0:00:42.6]} 5...
Bxd3 {[%clk 0:02:45.1]} 6. Qxd3 {[%clk 0:00:44.5]} 6... Bd6 {[%clk 0:02:43.2]}
7. O-O {[%clk 0:00:45.9]} 7... Nf6 {[%clk 0:02:38.9]} 8. Nbd2 {[%clk 0:00:47.1]}
8... Ng4 {[%clk 0:02:33.1]} 9. g3 {[%clk 0:00:43.6]} 9... O-O {[%clk 0:02:25.8]}
10. e4 {[%clk 0:00:44.8]} 10... dxe4 {[%clk 0:02:13.4]} 11. Nxe4 {[%clk
0:00:46.7]} 11... Ne7 {[%clk 0:01:44.4]} 12. Nxd6 {[%clk 0:00:36.7]} 12... Qxd6
{[%clk 0:01:40.3]} 13. Qe4 {[%clk 0:00:36.8]} 13... Nf6 {[%clk 0:01:17.3]} 14.
Qe5 {[%clk 0:00:35.2]} 14... Ng4 {[%clk 0:01:07.9]} 15. Qxd6 {[%clk 0:00:34.7]}
15... cxd6 {[%clk 0:01:09.8]} 16. Rd1 {[%clk 0:00:33.3]} 16... Nd5 {[%clk
0:01:07.3]} 17. c4 {[%clk 0:00:29.9]} 17... Nb4 {[%clk 0:01:05.4]} 18. a3 {[%clk
0:00:29.9]} 18... Nc2 {[%clk 0:01:05.3]} 19. Rb1 {[%clk 0:00:30.8]} 19... Rac8
{[%clk 0:00:57.7]} 20. b3 {[%clk 0:00:27.8]} 20... d5 {[%clk 0:00:53.9]} 21. Rd2
{[%clk 0:00:27.5]} 21... Nxa3 {[%clk 0:00:25.7]} 22. Bxa3 {[%clk 0:00:27.4]}
22... Rfe8 {[%clk 0:00:26]} 23. cxd5 {[%clk 0:00:27.5]} 23... exd5 {[%clk
0:00:21.3]} 24. Rc1 {[%clk 0:00:28.5]} 24... Rxc1+ {[%clk 0:00:16.5]} 25. Bxc1
{[%clk 0:00:30.4]} 25... Nf6 {[%clk 0:00:13.6]} 26. Ne5 {[%clk 0:00:28.3]} 26...
Ne4 {[%clk 0:00:12.3]} 27. Rc2 {[%clk 0:00:27.2]} 27... h6 {[%clk 0:00:07.5]}
28. f3 {[%clk 0:00:26.5]} 28... Ng5 {[%clk 0:00:05.7]} 29. f4 {[%clk 0:00:27.4]}
29... Nh3+ {[%clk 0:00:04.4]} 30. Kg2 {[%clk 0:00:28.5]} 1

[Event "Open Nuevo Centro. Jornada 1"]
[Site "Chess.com"]
[Date "2020.06.19"]
[Round "7"]
[White "Rodriguez Rodriguez, Joan David "]
[Black "Gutierrez Lacambra, Jose Antonio"]
[Result "1-0"]
[WhiteElo "1629"]
[BlackElo "1259"]
[TimeControl "180+2"]
[EndTime "11:50:53 PDT"]
[Termination "Victoria de Not_Jr_chess por tiempo"]

1. d4 {[%clk 0:03:01.9]} 1... Nf6 {[%clk 0:02:58.7]} 2. c4 {[%clk 0:03:03.1]}
2... g6 {[%clk 0:03:00.2]} 3. Nc3 {[%clk 0:03:04.5]} 3... Bg7 {[%clk 0:03:02.1]}
4. e4 {[%clk 0:03:06.1]} 4... d6 {[%clk 0:03:03.8]} 5. Nf3 {[%clk 0:03:07.4]}
5... O-O {[%clk 0:03:05.2]} 6. Be2 {[%clk 0:03:08.5]} 6... e5 {[%clk 0:03:06.7]}
7. dxe5 {[%clk 0:03:10.4]} 7... dxe5 {[%clk 0:03:08.5]} 8. Qxd8 {[%clk 0:03:12]}
8... Rxd8 {[%clk 0:03:10.4]} 9. Bg5 {[%clk 0:03:13.4]} 9... Re8 {[%clk
0:03:12.3]} 10. O-O {[%clk 0:03:13.4]} 10... c6 {[%clk 0:03:13.3]} 11. Rad1
{[%clk 0:03:11.8]} 11... Nbd7 {[%clk 0:03:01.3]} 12. b4 {[%clk 0:03:12]} 12...
a5 {[%clk 0:02:55.1]} 13. a3 {[%clk 0:03:04.5]} 13... axb4 {[%clk 0:02:54.3]}
14. axb4 {[%clk 0:03:06.4]} 14... Nf8 {[%clk 0:02:55.8]} 15. b5 {[%clk 0:03:01]}
15... Bg4 {[%clk 0:02:51.8]} 16. h3 {[%clk 0:02:40.8]} 16... Bxf3 {[%clk
0:02:18]} 17. Bxf3 {[%clk 0:02:42.7]} 17... h6 {[%clk 0:02:19.3]} 18. Bh4 {[%clk
0:02:39]} 18... Ne6 {[%clk 0:02:19.4]} 19. Ne2 {[%clk 0:02:17]} 19... Ra2 {[%clk
0:02:12.8]} 20. Ra1 {[%clk 0:02:09.3]} 20... Rea8 {[%clk 0:02:12.5]} 21. Rac1
{[%clk 0:02:02.3]} 21... Nxe4 {[%clk 0:01:30.7]} 22. Bxe4 {[%clk 0:01:37.2]}
22... Rxe2 {[%clk 0:01:30.3]} 23. Bf3 {[%clk 0:01:33.4]} 23... Rb2 {[%clk
0:01:02.2]} 24. bxc6 {[%clk 0:01:32.9]} 24... bxc6 {[%clk 0:01:02.2]} 25. Bxc6
{[%clk 0:01:32.3]} 25... Raa2 {[%clk 0:00:55]} 26. Bd5 {[%clk 0:01:14.9]} 26...
Nc5 {[%clk 0:00:54.3]} 27. Bg3 {[%clk 0:01:09.4]} 27... Kf8 {[%clk 0:00:43]} 28.
Rb1 {[%clk 0:01:05.2]} 28... f5 {[%clk 0:00:37.8]} 29. Rxb2 {[%clk 0:00:59.4]}
29... Rxb2 {[%clk 0:00:37.5]} 30. Ra1 {[%clk 0:00:59.2]} 30... f4 {[%clk
0:00:19.6]} 31. Ra8+ {[%clk 0:00:58.8]} 31... Ke7 {[%clk 0:00:14.3]} 32. Ra7+
{[%clk 0:00:41.9]} 32... Kf6 {[%clk 0:00:15]} 33. Rf7+ {[%clk 0:00:37.7]} 33...
Kg5 {[%clk 0:00:04.8]} 34. h4+ {[%clk 0:00:36]} 1